lending/lending_fUSD_20250408
["ID","MTS","AMOUNT","RATE_DAILY","PERIOD"]
[357535822,1744131133950,-808.53,0.00030136,2]
[357535823,1744131133960,-1146.51,0.00030136,2]
[357535824,1744131133969,-535.91,0.00030136,2]
[357535825,1744131133980,-24279.06,0.00030136,2]
[357535826,1744131133990,-500.0,0.00030136,2]
[357535827,1744131134000,-500.0,0.00030136,2]
[357535828,1744131134010,-500.0,0.00030136,2]
[357535829,1744131134020,-500.0,0.00030136,2]
[357535830,1744131134030,-1842.22,0.00030136,2]
[357535831,1744131134119,-632.96,0.00030136,2]
[357535832,1744131134130,-500.0,0.00030136,2]
[357535833,1744131134140,-892.34,0.00030136,2]
[357535834,1744131134150,-575.39,0.00030136,2]
[357535835,1744131134160,-735.43,0.00030136,2]
[357535836,1744131134172,-500.0,0.00030136,2]
[357535837,1744131134183,-921.97,0.00030136,2]
[357535838,1744131134193,-1216.92,0.00030136,2]
[357535839,1744131134203,-589.43,0.00030136,2]
[357535840,1744131134212,-500.0,0.00030136,2]
[357535841,1744131134222,-500.0,0.00030136,2]
[357535842,1744131134232,-500.0,0.00030136,2]
[357535843,1744131134242,-646.32,0.00030136,2]
[357535844,1744131134252,-1299.3,0.00030136,2]
[357535845,1744131134262,-616.22,0.00030136,2]
[357535846,1744131134272,-4391.56,0.00030136,2]
[357535847,1744131134282,-735.03,0.00030136,2]
[357535848,1744131134291,-515.53918316,0.00030136,2]
[357535849,1744131134301,-830.9,0.00030136,2]
[357535850,1744131134311,-573.44,0.00030136,2]
[357535851,1744131134320,-542.44,0.00030136,2]
[357535852,1744131134331,-500.0,0.00030136,2]
[357535853,1744131134341,-1398.27,0.00030136,2]
[357535854,1744131134351,-500.0,0.00030136,2]
[357535855,1744131134360,-500.0,0.00030136,2]
[357535856,1744131134370,-763.62,0.00030136,2]
[357535857,1744131134380,-745.57,0.00030136,2]
[357535858,1744131134389,-500.0,0.00030136,2]
[357535859,1744131134399,-1043.21,0.00030136,2]
[357535860,1744131134413,-812.8,0.00030136,2]
[357535861,1744131134423,-500.0,0.00030136,2]
[357535862,1744131134433,-836.32,0.00030136,2]
[357535863,1744131134443,-813.0,0.00030136,2]
[357535864,1744131134452,-560.24203989,0.00030136,2]
[357535865,1744131134461,-500.0,0.00030136,2]
[357535866,1744131134470,-500.0,0.00030136,2]
[357535867,1744131134480,-684.15,0.00030136,2]
[357535868,1744131134490,-1564.46,0.00030136,2]
[357535869,1744131134499,-984.76,0.00030136,2]
[357535870,1744131134509,-615.97,0.00030136,2]
[357535871,1744131134518,-630.49,0.00030136,2]
[357535872,1744131134528,-780.29,0.00030136,2]
[357535873,1744131134537,-500.0,0.00030136,2]
[357535874,1744131134547,-794.86,0.00030136,2]
[357535875,1744131134557,-918.03,0.00030136,2]
[357535876,1744131134567,-6319.24,0.00030136,2]
[357535877,1744131134578,-929.59,0.00030136,2]
[357535878,1744131134588,-1679.19,0.00030136,2]
[357535879,1744131134597,-500.0,0.00030136,2]
[357535880,1744131134608,-660.39,0.00030136,2]
[357535881,1744131134618,-500.0,0.00030136,2]
[357535882,1744131134628,-639.27,0.00030136,2]
[357535883,1744131134638,-500.0,0.00030136,2]
[357535884,1744131134648,-751.14,0.00030136,2]
[357535885,1744131134657,-725.42,0.00030136,2]
[357535886,1744131134667,-500.0,0.00030136,2]
[357535887,1744131134677,-500.0,0.00030136,2]
[357535888,1744131134686,-169.21,0.00030137,2]
[357535889,1744131134695,-150.0,0.00030279,2]
[357535890,1744131134705,-549.08232006,0.00030279,5]
[357535891,1744131134715,-896.03912502,0.00030329,5]
[357535892,1744131134725,-1000.0,0.00030329,5]
[357535893,1744131134735,-500.0,0.00030329,5]
[357535894,1744131134744,-1123.172,0.00030355,2]
[357535895,1744131134754,-841.246,0.00030355,2]
[357535896,1744131134764,-1120.0,0.00030355,2]
[357535897,1744131134773,-500.0,0.0003041,2]
[357535898,1744131134783,-500.0,0.0003041,2]
[357535899,1744131134793,-521.99,0.0003041,2]
[357535900,1744131134802,-500.0,0.0003041,2]
[357535901,1744131134812,-1012.34,0.0003041,2]
[357535902,1744131134822,-500.0,0.0003041,2]
[357535903,1744131134833,-500.0,0.0003041,2]
[357535904,1744131134843,-500.0,0.0003041,2]
[357535905,1744131134852,-530.97142444,0.0003041,2]
[357535906,1744131134862,-1008.75,0.0003041,2]
[357535907,1744131134871,-572.69,0.0003041,2]
[357535908,1744131134881,-938.36,0.0003041,2]
[357535909,1744131134890,-500.0,0.0003041,2]
[357535910,1744131134900,-500.0,0.0003041,2]
[357535911,1744131134910,-799.85,0.0003041,2]
[357535912,1744131134919,-500.0,0.0003041,2]
[357535913,1744131134929,-500.0,0.0003041,2]
[357535914,1744131134938,-500.0,0.0003041,2]
[357535915,1744131134948,-500.0,0.0003041,2]
[357535916,1744131134957,-633.76760956,0.0003041,2]
[357535917,1744131134967,-500.0,0.0003041,2]
[357535918,1744131134977,-500.0,0.0003041,2]
[357535919,1744131134986,-500.0,0.0003041,2]
[357535920,1744131134995,-500.0,0.0003041,2]
[357535921,1744131135005,-936.4,0.0003041,2]
[357535922,1744131135015,-500.0,0.0003041,2]
[357535923,1744131135024,-500.0,0.0003041,2]
[357535924,1744131135034,-736.0,0.0003041,2]
[357535925,1744131135043,-500.0,0.0003041,2]
[357535926,1744131135053,-500.0,0.0003041,2]
[357535927,1744131135063,-550.93,0.0003041,2]
[357535928,1744131135072,-500.0,0.0003041,2]
[357535929,1744131135084,-500.0,0.0003041,2]
[357535930,1744131135100,-621.25,0.0003041,2]
[357535931,1744131135110,-500.0,0.0003041,2]
[357535932,1744131135119,-500.0,0.0003041,2]
[357535933,1744131135130,-500.0,0.0003041,2]
[357535934,1744131135140,-500.0,0.0003041,2]
[357535935,1744131135150,-1509.4,0.0003041,2]
[357535936,1744131135159,-768.18,0.0003041,2]
[357535937,1744131135170,-216.86358289,0.0003041,2]
[357535938,1744131135180,-500.0,0.0003041,2]
[357535939,1744131135191,-734.29,0.0003041,2]
[357535940,1744131135201,-500.0,0.0003041,2]
[357535941,1744131135212,-500.0,0.0003041,2]
[357535942,1744131135221,-707.17,0.0003041,2]
[357535943,1744131135231,-500.0,0.0003041,2]
[357535944,1744131135241,-482.63295974,0.0003041,2]
[357535945,1744131135250,-500.0,0.0003041,2]
[357535946,1744131135262,-509.41,0.0003041,2]
[357535947,1744131135272,-500.0,0.0003041,2]
[357535948,1744131135282,-500.0,0.0003041,2]
[357535949,1744131135292,-1220.84,0.0003041,2]
[357535950,1744131135301,-500.0,0.0003041,2]
[357535951,1744131135311,-500.0,0.0003041,2]
[357535952,1744131135320,-500.0,0.0003041,2]
[357535953,1744131135333,-500.0,0.0003041,2]
[357535954,1744131135342,-500.0,0.0003041,2]
[357535955,1744131135351,-264.03464559,0.0003041,2]
[357535956,1744131135361,-500.0,0.0003041,2]
[357535957,1744131135371,-545.03,0.0003041,2]
[357535958,1744131135381,-500.0,0.0003041,2]
[357535959,1744131135390,-500.0,0.0003041,2]
[357535960,1744131135400,-500.0,0.0003041,2]
[357535961,1744131135409,-525.68709956,0.0003041,2]
[357535962,1744131135418,-500.0,0.0003041,2]
[357535963,1744131135427,-1019.54,0.0003041,2]
[357535964,1744131135437,-538.21,0.0003041,2]
[357535965,1744131135446,-1644.68,0.0003041,2]
[357535966,1744131135455,-320.10209435,0.0003041,2]
[357535967,1744131135465,-734.05,0.0003041,2]
[357535968,1744131135475,-500.0,0.0003041,2]
[357535969,1744131135484,-500.0,0.0003041,2]
[357535970,1744131135494,-1425.74,0.0003041,2]
[357535971,1744131135504,-500.0,0.0003041,2]
[357535972,1744131135513,-1187.81,0.0003041,2]
[357535973,1744131135522,-500.0,0.0003041,2]
[357535974,1744131135532,-500.0,0.0003041,2]
[357535975,1744131135541,-500.0,0.0003041,2]
[357535976,1744131135550,-500.0,0.0003041,2]
[357535977,1744131135560,-500.0,0.0003041,2]
[357535978,1744131135569,-1273.1,0.0003041,2]
[357535979,1744131135582,-500.0,0.0003041,2]
[357535980,1744131135591,-1048.09,0.0003041,2]
[357535981,1744131135600,-531.84,0.0003041,2]
[357535982,1744131135609,-500.0,0.0003041,2]
[357535983,1744131135618,-500.0,0.0003041,2]
[357535984,1744131135628,-686.22,0.0003041,2]
[357535985,1744131135637,-643.82,0.0003041,2]
[357535986,1744131135647,-589.26,0.0003041,2]
[357535987,1744131135656,-530.29,0.0003041,2]
[357535988,1744131135665,-1739.87,0.0003041,2]
[357535989,1744131135674,-913.6,0.0003041,2]
[357535990,1744131135683,-500.0,0.0003041,2]
[357535991,1744131135693,-500.0,0.0003041,2]
[357535992,1744131135702,-541.35,0.0003041,2]
[357535993,1744131135711,-500.0,0.0003041,2]
[357535994,1744131135721,-500.0,0.0003041,2]
[357535995,1744131135731,-524.83,0.0003041,2]
[357535996,1744131135740,-853.97,0.0003041,2]
[357535997,1744131135750,-500.91466699,0.0003041,2]
[357535998,1744131135759,-500.0,0.0003041,2]
[357535999,1744131135768,-500.0,0.0003041,2]
[357536000,1744131135778,-1206.08,0.0003041,2]
[357536001,1744131135788,-500.0,0.0003041,2]
[357536002,1744131135798,-500.0,0.0003041,2]
[357536003,1744131135807,-839.17,0.0003041,2]
[357536004,1744131135817,-500.0,0.0003041,2]
[357536005,1744131135827,-500.0,0.0003041,2]
[357536006,1744131135837,-1079.35,0.0003041,2]
[357536007,1744131135847,-500.0,0.0003041,2]
[357536008,1744131135856,-646.6,0.0003041,2]
[357536009,1744131135866,-316.78650339,0.0003041,2]
[357536010,1744131135876,-500.0,0.0003041,2]
[357536011,1744131135885,-1392.68,0.0003041,2]
[357536012,1744131135895,-1013.5,0.0003041,2]
[357536013,1744131135904,-1047.48,0.0003041,2]
[357536014,1744131135914,-500.0,0.0003041,2]
[357536015,1744131135923,-1138.94,0.0003041,2]
[357536016,1744131135932,-500.0,0.0003041,2]
[357536017,1744131135942,-500.0,0.0003041,2]
[357536018,1744131135951,-500.0,0.0003041,2]
[357536019,1744131135961,-571.65,0.0003041,2]
[357536020,1744131135971,-500.0,0.0003041,2]
[357536021,1744131135980,-500.0,0.0003041,2]
[357536022,1744131135990,-473.72019116,0.0003041,2]
[357536023,1744131135999,-500.0,0.0003041,2]
[357536024,1744131136009,-985.93,0.0003041,2]
[357536025,1744131136018,-500.0,0.0003041,2]
[357536026,1744131136027,-500.0,0.0003041,2]
[357536027,1744131136037,-396.92426706,0.0003041,2]
[357536028,1744131136047,-500.0,0.0003041,2]
[357536029,1744131136056,-500.0,0.0003041,2]
[357536030,1744131136065,-500.0,0.0003041,2]
[357536031,1744131136074,-893.75,0.0003041,2]
[357536032,1744131136084,-244.01211305,0.0003041,2]
[357536033,1744131136097,-882.81,0.0003041,2]
[357536034,1744131136106,-635.65,0.0003041,2]
[357536035,1744131136115,-500.0,0.0003041,2]
[357536036,1744131136124,-554.86,0.0003041,2]
[357536037,1744131136134,-500.0,0.0003041,2]
[357536038,1744131136143,-1285.07,0.0003041,2]
[357536039,1744131136153,-500.0,0.0003041,2]
[357536040,1744131136162,-815.01,0.0003041,2]
[357536041,1744131136173,-2250.35,0.0003041,2]
[357536042,1744131136182,-828.56,0.0003041,2]
[357536043,1744131136191,-553.89,0.0003041,2]
[357536044,1744131136200,-554.97,0.0003041,2]
[357536045,1744131136210,-571.07,0.0003041,2]
[357536046,1744131136219,-500.0,0.0003041,2]
[357536047,1744131136230,-500.0,0.0003041,2]
[357536048,1744131136239,-635.52,0.0003041,2]
[357536049,1744131136249,-500.0,0.0003041,2]
[357536050,1744131136258,-729.33,0.0003041,2]
[357536051,1744131136268,-500.0,0.0003041,2]
[357536052,1744131136277,-1155.37,0.0003041,2]
[357536053,1744131136287,-500.0,0.0003041,2]
[357536054,1744131136296,-683.43,0.0003041,2]
[357536055,1744131136306,-500.0,0.0003041,2]
[357536056,1744131136317,-659.52,0.0003041,2]
[357536057,1744131136328,-959.29,0.0003041,2]
[357536058,1744131136339,-1042.58,0.0003041,2]
[357536059,1744131136351,-500.0,0.0003041,2]
[357536060,1744131136363,-500.0,0.0003041,2]
[357536061,1744131136374,-502.74,0.0003041,2]
[357536062,1744131136384,-500.0,0.0003041,2]
[357536063,1744131136395,-500.0,0.0003041,2]
[357536064,1744131136404,-500.0,0.0003041,2]
[357536065,1744131136414,-500.0,0.0003041,2]
[357536066,1744131136426,-500.0,0.0003041,2]
[357536067,1744131136435,-651.5,0.0003041,2]
[357536068,1744131136445,-500.0,0.0003041,2]
[357536069,1744131136455,-594.23,0.0003041,2]
[357536070,1744131136464,-594.32,0.0003041,2]
[357536071,1744131136474,-764.58,0.0003041,2]
[357536072,1744131136483,-554.84,0.0003041,2]
[357536073,1744131136493,-1066.53,0.0003041,2]
[357536074,1744131136502,-500.0,0.0003041,2]
[357536075,1744131136512,-546.83,0.0003041,2]
[357536076,1744131136521,-784.39,0.0003041,2]
[357536077,1744131136530,-508.06,0.0003041,2]
[357536078,1744131136539,-513.92,0.0003041,2]
[357536079,1744131136549,-500.0,0.0003041,2]
[357536080,1744131136559,-2000.0,0.0003041,2]
[357536081,1744131136568,-500.0,0.0003041,2]
[357536082,1744131136578,-568.34,0.0003041,2]
[357536083,1744131136588,-1465.9,0.0003041,2]
[357536084,1744131136597,-583.31,0.0003041,2]
[357536085,1744131136606,-627.5,0.0003041,2]
[357536086,1744131136615,-500.0,0.0003041,2]
[357536087,1744131136625,-500.0,0.0003041,2]
[357536088,1744131136634,-500.0,0.0003041,2]
[357536089,1744131136643,-500.0,0.0003041,2]
[357536090,1744131136653,-570.96,0.0003041,2]
[357536091,1744131136663,-500.0,0.0003041,2]
[357536092,1744131136672,-702.55,0.0003041,2]
[357536093,1744131136682,-500.0,0.0003041,2]
[357536094,1744131136691,-500.0,0.0003041,2]
[357536095,1744131136701,-500.0,0.0003041,2]
[357536096,1744131136710,-627.68,0.0003041,2]
[357536097,1744131136720,-500.0,0.0003041,2]
[357536098,1744131136729,-600.21,0.0003041,2]
[357536099,1744131136739,-717.93,0.0003041,2]
[357536100,1744131136748,-525.64,0.0003041,2]
[357536101,1744131136757,-683.46,0.0003041,2]
[357536102,1744131136767,-500.0,0.0003041,2]
[357536103,1744131136776,-500.0,0.0003041,2]
[357536104,1744131136785,-537.7,0.0003041,2]
[357536105,1744131136794,-500.0,0.0003041,2]
[357536106,1744131136803,-1354.7,0.0003041,2]
[357536107,1744131136813,-580.6607346,0.0003041,2]
[357536108,1744131136822,-748.01,0.0003041,2]
[357536109,1744131136833,-1010.61,0.0003041,2]
[357536110,1744131136843,-500.0,0.0003041,2]
[357536111,1744131136853,-500.0,0.0003041,2]
[357536112,1744131136862,-564.61,0.0003041,2]
[357536113,1744131136872,-500.0,0.0003041,2]
[357536114,1744131136881,-162.56047659,0.0003041,2]
[357536115,1744131136890,-500.0,0.0003041,2]
[357536116,1744131136899,-790.51,0.0003041,2]
[357536117,1744131136908,-500.0,0.0003041,2]
[357536118,1744131136917,-1476.66,0.0003041,2]
[357536119,1744131136927,-500.0,0.0003041,2]
[357536120,1744131136936,-500.0,0.0003041,2]
[357536121,1744131136946,-500.0,0.0003041,2]
[357536122,1744131136955,-655.26,0.0003041,2]
[357536123,1744131136965,-500.0,0.0003041,2]
[357536124,1744131136974,-737.15,0.0003041,2]
[357536125,1744131136983,-539.63,0.0003041,2]
[357536126,1744131136993,-500.0,0.0003041,2]
[357536127,1744131137003,-500.0,0.0003041,2]
[357536128,1744131137012,-703.81,0.0003041,2]
[357536129,1744131137022,-959.99,0.0003041,2]
[357536130,1744131137031,-677.2,0.0003041,2]
[357536131,1744131137040,-704.21,0.0003041,2]
[357536132,1744131137049,-641.96,0.0003041,2]
[357536133,1744131137058,-505.48,0.0003041,2]
[357536134,1744131137068,-932.66,0.0003041,2]
[357536135,1744131137078,-812.56,0.0003041,2]
[357536136,1744131137091,-1465.75,0.0003041,2]
[357536137,1744131137103,-580.15,0.0003041,2]
[357536138,1744131137113,-888.6,0.0003041,2]
[357536139,1744131137124,-889.0,0.0003041,2]
[357536140,1744131137135,-545.23,0.0003041,2]
[357536141,1744131137145,-2260.02,0.0003041,2]
[357536142,1744131137154,-794.37,0.0003041,2]
[357536143,1744131137163,-500.0,0.0003041,2]
[357536144,1744131137174,-613.35,0.0003041,2]
[357536145,1744131137184,-500.0,0.0003041,2]
[357536146,1744131137193,-567.81,0.0003041,2]
[357536147,1744131137203,-808.98,0.0003041,2]
[357536148,1744131137212,-845.46,0.0003041,2]
[357536149,1744131137222,-593.3,0.0003041,2]
[357536150,1744131137231,-500.0,0.0003041,2]
[357536151,1744131137241,-581.16,0.0003041,2]
[357536152,1744131137250,-500.0,0.0003041,2]
[357536153,1744131137261,-878.06,0.0003041,2]
[357536154,1744131137270,-500.0,0.0003041,2]
[357536155,1744131137280,-1056.72,0.0003041,2]
[357536156,1744131137289,-500.0,0.0003041,2]
[357536157,1744131137299,-1037.85,0.0003041,2]
[357536158,1744131137310,-624.4,0.0003041,2]
[357536159,1744131137319,-500.0,0.0003041,2]
[357536160,1744131137331,-500.0,0.0003041,2]
[357536161,1744131137341,-500.0,0.0003041,2]
[357536162,1744131137350,-547.36,0.0003041,2]
[357536163,1744131137360,-500.0,0.0003041,2]
[357536164,1744131137371,-1221.73,0.0003041,2]
[357536165,1744131137380,-500.0,0.0003041,2]
[357536166,1744131137389,-541.77,0.0003041,2]
[357536167,1744131137398,-1049.21,0.0003041,2]
[357536168,1744131137408,-500.0,0.0003041,2]
[357536169,1744131137417,-833.03,0.0003041,2]
[357536170,1744131137426,-500.0,0.0003041,2]
[357536171,1744131137435,-947.72,0.0003041,2]
[357536172,1744131137444,-915.59,0.0003041,2]
[357536173,1744131137454,-500.0,0.0003041,2]
[357536174,1744131137463,-2154.22,0.0003041,2]
[357536175,1744131137472,-500.0,0.0003041,2]
[357536176,1744131137482,-715.09,0.0003041,2]
[357536177,1744131137491,-681.07,0.0003041,2]
[357536178,1744131137500,-806.29,0.0003041,2]
[357536179,1744131137509,-500.0,0.0003041,2]
[357536180,1744131137518,-596.17,0.0003041,2]
[357536181,1744131137528,-500.0,0.0003041,2]
[357536182,1744131137537,-623.11,0.0003041,2]
[357536183,1744131137546,-643.21,0.0003041,2]
[357536184,1744131137556,-895.87,0.0003041,2]
[357536185,1744131137565,-591.63,0.0003041,2]
[357536186,1744131137575,-433.46984609,0.0003041,2]
[357536187,1744131137587,-500.0,0.0003041,2]
[357536188,1744131137596,-840.88,0.0003041,2]
[357536189,1744131137606,-500.0,0.0003041,2]
[357536190,1744131137616,-915.65,0.0003041,2]
[357536191,1744131137625,-506.50648097,0.0003041,2]
[357536192,1744131137635,-151.0,0.0003041,7]
[357536193,1744131137644,-500.0,0.0003041,2]
[357536194,1744131137653,-2601.54,0.0003041,2]
[357536195,1744131137662,-6189.26,0.0003041,2]
[357536196,1744131137672,-1470.66,0.0003041,2]
[357536197,1744131137681,-500.0,0.0003041,2]
[357536198,1744131137691,-1161.33,0.0003041,2]
[357536199,1744131137701,-557.06,0.0003041,2]
[357536200,1744131137710,-500.0,0.0003041,2]
[357536201,1744131137719,-748.03,0.0003041,2]
[357536202,1744131137729,-1784.68,0.0003041,2]
[357536203,1744131137740,-500.0,0.0003041,2]
[357536204,1744131137749,-736.96,0.0003041,2]
[357536205,1744131137758,-500.0,0.0003041,2]
[357536206,1744131137768,-802.54,0.0003041,2]
[357536207,1744131137778,-500.0,0.0003041,2]
[357536208,1744131137788,-500.0,0.0003041,2]
[357536209,1744131137798,-528.16,0.0003041,2]
[357536210,1744131137807,-1759.78,0.0003041,2]
[357536211,1744131137816,-880.64,0.0003041,2]
[357536212,1744131137825,-878.89,0.0003041,2]
[357536213,1744131137837,-939.58,0.0003041,2]
[357536214,1744131137846,-735.03,0.0003041,2]
[357536215,1744131137855,-524.35,0.0003041,2]
[357536216,1744131137865,-500.0,0.0003041,2]
[357536217,1744131137874,-500.0,0.0003041,2]
[357536218,1744131137883,-1127.76,0.0003041,2]
[357536219,1744131137894,-641.26806145,0.0003041,2]
[357536220,1744131137904,-500.0,0.0003041,2]
[357536221,1744131137913,-151.0,0.0003041,7]
[357536222,1744131137923,-1017.57,0.0003041,2]
[357536223,1744131137932,-214.97015,0.0003041,7]
[357536224,1744131137942,-6178.64,0.0003041,2]
[357536225,1744131137953,-396.28,0.0003041,2]
[357536226,1744131137963,-513.55,0.0003041,2]
[357536227,1744131137973,-500.0,0.0003041,2]
[357536228,1744131137982,-950.17,0.0003041,2]
[357536229,1744131137991,-1089.76,0.0003041,2]
[357536230,1744131138001,-549.65,0.0003041,2]
[357536231,1744131138011,-151.0,0.0003041,7]
[357536232,1744131138020,-578.6,0.0003041,2]
[357536233,1744131138030,-841.6,0.0003041,2]
[357536234,1744131138040,-1940.65,0.0003041,2]
[357536235,1744131138050,-671.05,0.0003041,2]
[357536236,1744131138060,-3839.98,0.0003041,2]
[357536237,1744131138070,-500.0,0.0003041,2]
[357536238,1744131138088,-500.0,0.0003041,2]
[357536239,1744131138099,-558.9,0.0003041,2]
[357536240,1744131138109,-500.0,0.0003041,2]
[357536241,1744131138119,-1739.52,0.0003041,2]
[357536242,1744131138129,-151.0,0.0003041,7]
[357536243,1744131138140,-500.0,0.0003041,2]
[357536244,1744131138150,-500.0,0.0003041,2]
[357536245,1744131138159,-853.97,0.0003041,2]
[357536246,1744131138170,-727.58,0.0003041,2]
[357536247,1744131138180,-734.69,0.0003041,2]
[357536248,1744131138190,-1008.41,0.0003041,2]
[357536249,1744131138199,-990.1,0.0003041,2]
[357536250,1744131138209,-737.46,0.0003041,2]
[357536251,1744131138219,-500.0,0.0003041,2]
[357536252,1744131138230,-880.15,0.0003041,2]
[357536253,1744131138239,-825.98,0.0003041,2]
[357536254,1744131138250,-500.0,0.0003041,2]
[357536255,1744131138259,-872.33,0.0003041,2]
[357536256,1744131138269,-506.13,0.0003041,2]
[357536257,1744131138279,-2261.1,0.0003041,2]
[357536258,1744131138289,-500.0,0.0003041,2]
[357536259,1744131138300,-2351.91,0.0003041,2]
[357536260,1744131138310,-1830.5,0.0003041,2]
[357536261,1744131138320,-500.0,0.0003041,2]
[357536262,1744131138335,-727.88,0.0003041,2]
[357536263,1744131138345,-986.07,0.0003041,2]
[357536264,1744131138356,-1859.52,0.0003041,2]
[357536265,1744131138367,-665.51,0.0003041,2]
[357536266,1744131138377,-593.3,0.0003041,2]
[357536267,1744131138388,-500.0,0.0003041,2]
[357536268,1744131138398,-1483.68,0.0003041,2]
[357536269,1744131138408,-4169.04,0.0003041,2]
[357536270,1744131138418,-1258.57,0.0003041,2]
[357536271,1744131138428,-500.0,0.0003041,2]
[357536272,1744131138438,-524.58,0.0003041,2]
[357536273,1744131138448,-500.0,0.0003041,2]
[357536274,1744131138458,-646.63,0.0003041,2]
[357536275,1744131138469,-500.0,0.0003041,2]
[357536276,1744131138479,-808.53,0.0003041,2]
[357536277,1744131138490,-1146.51,0.0003041,2]
[357536278,1744131138500,-535.91,0.0003041,2]
[357536279,1744131138511,-24279.06,0.0003041,2]
[357536280,1744131138521,-500.0,0.0003041,2]
[357536281,1744131138531,-500.0,0.0003041,2]
[357536282,1744131138542,-500.0,0.0003041,2]
[357536283,1744131138552,-500.0,0.0003041,2]
[357536284,1744131138561,-632.96,0.0003041,2]
[357536285,1744131138571,-1842.22,0.0003041,2]
[357536286,1744131138582,-500.0,0.0003041,2]
[357536287,1744131138592,-892.34,0.0003041,2]
[357536288,1744131138602,-575.39,0.0003041,2]
[357536289,1744131138612,-735.43,0.0003041,2]
[357536290,1744131138723,-921.97,0.0003041,2]
[357536291,1744131138733,-500.0,0.0003041,2]
[357536292,1744131138743,-1216.92,0.0003041,2]
[357536293,1744131138752,-589.43,0.0003041,2]
[357536294,1744131138764,-500.0,0.0003041,2]
[357536295,1744131138774,-500.0,0.0003041,2]
[357536296,1744131138784,-500.0,0.0003041,2]
[357536297,1744131138795,-646.32,0.0003041,2]
[357536298,1744131138805,-1299.3,0.0003041,2]
[357536299,1744131138815,-616.22,0.0003041,2]
[357536300,1744131138825,-4391.56,0.0003041,2]
[357536301,1744131138836,-735.03,0.0003041,2]
[357536302,1744131138845,-830.9,0.0003041,2]
[357536303,1744131138855,-573.44,0.0003041,2]
[357536304,1744131138865,-542.44,0.0003041,2]
[357536305,1744131138875,-610.08351978,0.0003041,2]
[357536306,1744131138885,-1398.27,0.0003041,2]
[357536307,1744131138895,-500.0,0.0003041,2]
[357536308,1744131138904,-500.0,0.0003041,2]
[357536309,1744131138914,-763.62,0.0003041,2]
[357536310,1744131138924,-745.57,0.0003041,2]
[357536311,1744131138933,-500.0,0.0003041,2]
[357536312,1744131138942,-1043.21,0.0003041,2]
[357536313,1744131138952,-812.8,0.0003041,2]
[357536314,1744131138962,-500.0,0.0003041,2]
[357536315,1744131138971,-836.32,0.0003041,2]
[357536316,1744131138981,-813.0,0.0003041,2]
[357536317,1744131138991,-500.0,0.0003041,2]
[357536318,1744131139001,-500.0,0.0003041,2]
[357536319,1744131139010,-684.15,0.0003041,2]
[357536320,1744131139020,-1564.46,0.0003041,2]
[357536321,1744131139030,-984.76,0.0003041,2]